bitfinex/quotes_ETHUSD_20240925
["timestamp","ask_amount","ask_price","bid_price","bid_amount"]
[1727292143824,0.05115762,2586.7,2586.3,5.26856303]
[1727292144209,3.86637,2586.4,2586.3,0.0378112]
[1727292144416,8.33708591,2586.4,2586.3,0.0378112]
[1727292144714,8.33708591,2586.4,2585.6,0.0378112]
[1727292144715,4.69332,2585.7,2585.6,0.0378112]
[1727292144919,8.64609232,2585.7,2585.6,0.0378112]
[1727292145222,14.68093846,2585.7,2585.6,0.0378112]
[1727292145601,15.88974234,2585.7,2585.6,0.0378112]
[1727292145859,12.24492643,2585.7,2585.6,0.0378112]
[1727292147034,8.60011052,2585.7,2585.6,0.0378112]
[1727292147229,12.24492643,2585.7,2585.6,0.0378112]
[1727292148309,4.74404952,2585.7,2585.6,0.0378112]
[1727292148515,3.91814952,2585.7,2585.6,0.0378112]
[1727292148957,0.05072952,2585.7,2585.6,0.0378112]
[1727292149252,4.64572,2586.0,2585.6,0.0378112]
[1727292149463,0.04625862,2585.7,2585.6,0.0378112]
[1727292149638,3.86717,2585.9,2585.6,0.0378112]
[1727292149837,0.04625862,2585.7,2585.6,0.0378112]
[1727292150224,3.86712,2586.0,2585.6,0.0378112]
[1727292150429,0.04645355,2585.7,2585.6,0.0378112]
[1727292150654,3.86712,2586.0,2585.6,0.0378112]
[1727292150829,0.0465705,2585.7,2585.6,0.0378112]
[1727292151046,3.86712,2586.0,2585.6,0.0378112]
[1727292151244,0.0465705,2585.7,2585.6,0.0378112]
[1727292151450,3.86706,2586.0,2585.6,0.0378112]
[1727292151656,0.0465705,2585.7,2585.6,0.0378112]
[1727292151878,3.86721,2585.9,2585.6,0.0378112]
[1727292152026,0.0465705,2585.7,2585.6,0.0378112]
[1727292152224,3.86721,2585.9,2585.6,0.0378112]
[1727292152463,0.0465705,2585.7,2585.6,0.0378112]
[1727292152667,3.86706,2586.0,2585.6,0.0378112]
[1727292152971,3.86737,2585.8,2585.6,0.0378112]
[1727292153173,4.01073988,2585.7,2585.6,0.0378112]
[1727292153669,0.14331988,2585.7,2585.6,0.0378112]
[1727292154226,0.04662896,2585.7,2585.6,0.0378112]
[1727292154627,4.61819759,2586.0,2585.6,0.0378112]
[1727292154833,0.04652177,2585.7,2585.6,0.0378112]
[1727292155356,3.8672,2585.9,2585.6,0.0378112]
[1727292155542,0.04652177,2585.8,2585.6,0.0378112]
[1727292155963,3.86701,2586.0,2585.6,0.0378112]
[1727292156157,0.04658024,2585.9,2585.6,0.0378112]
[1727292156474,3.86701,2586.0,2585.7,0.8165]
[1727292156668,0.04658024,2585.8,2585.7,0.8165]
[1727292156967,3.91404769,2585.8,2585.6,0.0378112]
[1727292157336,0.0966909,2585.7,2585.6,0.0378112]
[1727292157966,0.14336859,2585.7,2585.6,0.0378112]
[1727292158527,0.04667769,2585.7,2585.6,0.0378112]
[1727292158734,3.86712,2585.9,2585.6,0.0378112]
[1727292159058,0.04707725,2585.8,2585.6,0.0378112]
[1727292159545,3.86706,2586.0,2585.6,0.0378112]
[1727292159870,0.04707725,2585.7,2585.6,0.0378112]
[1727292160074,3.86706,2586.0,2585.6,0.0378112]
[1727292160253,0.04707725,2585.7,2585.6,0.0378112]
[1727292160458,3.86712,2585.9,2585.6,0.0378112]
[1727292160666,0.04707725,2585.7,2585.6,0.0378112]
[1727292160834,3.86712,2585.9,2585.6,0.0378112]
[1727292161035,0.04707725,2585.7,2585.6,0.0378112]
[1727292161670,3.86712,2585.9,2585.6,0.0378112]
[1727292161869,0.04707725,2585.7,2585.6,0.0378112]
[1727292162079,3.86727,2585.8,2585.6,0.0378112]
[1727292162230,0.14376534,2585.7,2585.6,0.0378112]
[1727292162930,0.04707725,2585.7,2585.6,0.0378112]
[1727292163134,3.96411254,2585.7,2585.6,0.0378112]
[1727292163474,4.01118979,2585.7,2585.6,0.0378112]
[1727292164167,3.91449725,2585.7,2585.6,0.0378112]
[1727292164585,0.04707725,2585.7,2585.6,0.0378112]
[1727292164761,3.86739,2585.8,2585.6,0.0378112]
[1727292164963,0.04707725,2585.7,2585.6,0.0378112]
[1727292165283,7.73478,2585.8,2585.6,0.0378112]
[1727292165449,0.04707725,2585.7,2585.6,0.0378112]
[1727292165649,0.14377067,2585.7,2585.6,0.0378112]
[1727292165845,0.09669342,2585.7,2585.6,0.0378112]
[1727292166055,0.14377067,2585.7,2585.6,0.0378112]
[1727292166254,0.04707725,2585.7,2585.6,0.0378112]
[1727292166954,3.86709,2586.0,2585.6,0.0378112]
[1727292167143,0.04707725,2585.9,2585.6,0.0378112]
[1727292168146,0.04707725,2585.9,2585.7,0.8215]
[1727292168348,3.86685,2586.1,2585.7,0.8215]
[1727292168570,0.04707725,2586.0,2585.7,0.8215]
[1727292169848,3.91405725,2586.0,2585.7,0.8215]
[1727292170954,7.78114725,2586.0,2585.7,0.8215]
[1727292171153,3.91405725,2586.0,2585.7,0.8215]
[1727292172064,3.96388216,2585.9,2585.7,0.8215]
[1727292172403,3.91405725,2586.0,2585.7,0.8215]
[1727292172614,0.0470383,2585.8,2585.7,0.8215]
[1727292172906,3.86698,2586.0,2585.7,0.8215]
[1727292173076,0.0470383,2585.8,2585.7,0.8215]
[1727292173280,3.86683,2586.1,2585.7,0.8215]
[1727292173599,3.867,2586.0,2585.7,0.8215]
[1727292173797,0.0470383,2585.9,2585.7,0.8215]
[1727292174772,0.0470383,2585.9,2585.7,4.68891]
[1727292174971,3.86678,2586.2,2585.7,5.54834312]
[1727292175305,0.04696034,2586.1,2585.7,1.68093312]
[1727292175514,3.91386034,2586.1,2585.7,1.68093312]
[1727292175801,0.04696034,2586.1,2585.7,5.54833312]
[1727292176004,3.867,2586.0,2585.7,0.8215]
[1727292176167,0.04697983,2585.9,2585.7,0.8215]
[1727292176977,3.86683,2586.1,2585.7,0.8215]
[1727292177184,0.04698957,2586.0,2585.7,0.8215]
[1727292179495,3.91397957,2586.0,2585.7,0.8215]
[1727292179935,0.04698957,2586.0,2585.7,5.16158712]
[1727292180223,3.86679,2586.2,2585.7,5.16158712]
[1727292180224,3.86683,2586.1,2585.7,5.16158712]
[1727292180393,3.86656,2586.3,2585.7,5.16158712]
[1727292180394,0.04697983,2586.0,2585.7,5.16158712]
[1727292180596,3.86669,2586.2,2585.7,5.16158712]
[1727292180924,0.04697983,2586.1,2585.8,0.88442142]
[1727292181224,0.04697983,2586.1,2585.7,0.8215]
[1727292181225,3.86706,2586.0,2585.7,0.8215]
[1727292181425,3.96351198,2586.1,2585.7,0.8215]
[1727292181628,3.91413676,2586.0,2585.7,0.8215]
[1727292181994,0.04709676,2586.0,2585.7,0.8215]
[1727292182727,0.04709676,2586.0,2585.7,4.68887]
[1727292182951,0.04709676,2586.0,2585.7,0.8215]
[1727292183147,3.91407676,2586.0,2585.7,0.8215]
[1727292183896,3.96381768,2585.9,2585.7,0.8215]
[1727292184218,0.04717471,2585.8,2585.7,0.8215]
[1727292184830,3.86715,2585.9,2585.6,0.0378112]
[1727292185035,0.04717471,2585.8,2585.6,0.0378112]
[1727292185603,0.43860718,2585.8,2585.6,0.0378112]
[1727292185895,4.30595718,2585.8,2585.6,0.0378112]
[1727292186207,0.04717471,2585.8,2585.6,0.0378112]
[1727292189104,0.04717471,2585.8,2585.6,3.9053612]
[1727292189304,3.86704,2586.0,2585.6,3.9053612]
[1727292189501,0.04635406,2585.7,2585.6,3.9053612]
[1727292189703,3.86704,2586.0,2585.6,3.9053612]
[1727292190216,0.04635406,2585.9,2585.6,3.9053612]
[1727292190444,0.04635406,2585.9,2585.6,0.0378112]
[1727292190735,3.91349406,2585.9,2585.6,0.0378112]
[1727292191235,0.04635406,2585.9,2585.6,0.0378112]
[1727292192747,3.91348406,2585.9,2585.6,0.0378112]
[1727292192936,0.04635406,2585.9,2585.6,0.0378112]
[1727292193376,0.04635406,2585.9,2585.6,3.9053612]
[1727292193545,0.04635406,2585.9,2585.6,0.0378112]
[1727292195853,3.91355406,2585.9,2585.6,0.0378112]
[1727292198057,0.04635406,2585.9,2585.6,0.0378112]
[1727292198262,0.04635406,2585.9,2585.7,0.7848]
[1727292198625,0.04635406,2585.9,2585.7,4.6521]
[1727292198820,7.36,2586.5,2585.9,3.86697]
[1727292198821,3.86623,2586.5,2585.9,3.86697]
[1727292199020,0.8316,2586.7,2585.8,2.46466879]
[1727292199021,0.04481658,2586.4,2585.8,2.46466879]
[1727292199257,0.04481658,2586.4,2585.8,6.33185879]
[1727292199258,3.86656,2586.3,2585.8,6.33185879]
[1727292199429,3.86656,2586.3,2585.8,2.46466879]
[1727292199430,0.04481658,2586.2,2585.8,2.46466879]
[1727292199632,4.19327905,2586.6,2585.9,3.86711]
[1727292199633,3.86637,2586.5,2585.9,3.86711]
[1727292199969,3.91124658,2586.4,2585.9,3.86704]
[1727292200462,3.91124658,2586.4,2586.0,3.86695]
[1727292200665,3.91124658,2586.4,2585.9,3.86703]
[1727292201039,3.91124658,2586.4,2585.9,7.73406]
[1727292201233,0.04481658,2586.4,2585.9,3.86703]
[1727292201439,3.91120658,2586.4,2585.9,4.75025665]
[1727292201657,3.91120658,2586.4,2585.9,8.61729665]
[1727292201833,3.91120658,2586.4,2586.0,3.86695]
[1727292202872,3.91120658,2586.4,2585.9,4.75025665]
[1727292203074,3.91120658,2586.4,2585.9,8.61728665]
[1727292203248,0.04481658,2586.4,2586.0,3.86692]
[1727292204492,0.04481658,2586.4,2586.2,0.7717]
[1727292204840,3.86623,2586.5,2586.2,0.7717]
[1727292205039,0.04481658,2586.4,2586.2,0.7717]
[1727292205444,7.73235,2586.6,2586.2,0.7717]
[1727292205647,3.86638,2586.4,2586.2,0.7717]
[1727292205841,3.86626,2586.5,2586.2,0.7717]
[1727292206037,0.04481658,2586.4,2586.2,0.7717]
[1727292206242,3.8664,2586.4,2586.2,0.7717]
[1727292206480,0.04481658,2586.3,2586.2,0.7717]
[1727292207081,0.04481658,2586.3,2586.0,0.7755]
[1727292207971,0.04481658,2586.3,2586.0,4.64243]
[1727292208286,3.86624,2586.5,2586.0,4.64243]
[1727292208452,0.04481658,2586.2,2586.0,5.85806923]
[1727292208661,3.86624,2586.5,2586.0,5.85806923]
[1727292208887,0.04481658,2586.4,2586.0,4.64243]
[1727292209262,3.91123658,2586.4,2586.0,0.7755]
[1727292209460,3.91123658,2586.4,2586.0,4.64247]
[1727292210345,3.91123658,2586.4,2586.0,0.7755]
[1727292210549,3.86674,2586.2,2585.7,0.8144]
[1727292211071,3.91128658,2586.4,2585.8,3.86724]
[1727292211072,0.04481658,2586.1,2585.8,3.86724]
[1727292211376,3.86647,2586.4,2585.9,3.86703]
[1727292211551,0.04481658,2586.0,2585.9,3.86703]
[1727292211751,3.86647,2586.4,2585.9,3.86703]
[1727292212095,4.69337,2586.6,2585.9,3.86703]
[1727292212259,0.04481658,2586.3,2586.0,0.7581]
[1727292213181,0.04481658,2586.3,2586.1,3.86681]
[1727292213680,0.04522614,2586.2,2586.1,3.86681]
[1727292213861,4.69337,2586.6,2586.0,0.7581]
[1727292214179,3.86639,2586.4,2586.0,4.62505]
[1727292214782,0.04522614,2586.3,2586.0,4.62505]
[1727292215558,0.04522614,2586.3,2585.6,0.0378112]
[1727292215559,4.64144,2585.8,2585.6,0.0378112]
[1727292215774,3.86742,2585.7,2585.6,0.0378112]
[1727292215992,4.718306,2585.7,2585.6,0.0378112]
[1727292216294,4.76353214,2585.7,2585.6,0.0378112]
[1727292223815,3.91264614,2585.7,2585.6,0.0378112]
[1727292224434,0.04522614,2585.7,2585.6,0.0378112]
[1727292224721,0.40240366,2586.2,2585.6,4.7287812]
[1727292224722,4.26915366,2586.2,2585.6,4.7287812]
[1727292224925,3.86675,2586.2,2585.7,4.70490336]
[1727292226191,0.04295792,2586.1,2585.7,4.70490336]
[1727292226410,0.04295792,2586.1,2585.8,3.86727]
[1727292226588,0.04295792,2586.1,2585.7,4.70496336]
[1727292226791,3.86677,2586.2,2585.7,4.70496336]
[1727292227125,0.7583,2586.4,2585.8,4.42377746]
[1727292227281,0.04295792,2586.1,2585.8,4.42377746]
[1727292227477,3.86653,2586.3,2585.8,8.29095746]
[1727292227716,0.04295792,2586.0,2585.8,8.29095746]
[1727292227911,3.86653,2586.3,2585.8,8.29095746]
[1727292228110,0.04295792,2586.2,2585.9,0.82909575]
[1727292228420,3.86653,2586.3,2585.9,0.82909575]
[1727292229037,0.04295792,2586.2,2585.9,0.82909575]
[1727292229384,3.86653,2586.3,2585.9,0.82909575]
[1727292229581,0.04295792,2586.1,2585.9,0.82909575]
[1727292229822,3.86653,2586.3,2585.9,0.82909575]
[1727292230026,0.04295792,2586.0,2585.8,3.86716]
[1727292230336,0.04295792,2585.9,2585.8,3.86716]
[1727292230683,0.7583,2586.4,2585.6,4.7286812]
[1727292230684,3.96337351,2586.2,2585.6,4.7286812]
[1727292230928,3.91051155,2586.1,2585.6,8.5961812]
[1727292231092,3.91045155,2586.1,2585.6,5.95298456]
[1727292232027,3.91045155,2586.1,2585.7,3.8674]
[1727292232533,0.04360155,2586.1,2585.7,3.8674]
[1727292232693,0.04360155,2586.1,2585.8,3.86727]
[1727292232900,0.04360155,2586.1,2585.9,0.386727]
[1727292233095,0.04360155,2586.1,2585.8,3.86727]
[1727292234187,0.04360155,2586.1,2585.6,9.82042456]
[1727292234381,3.91043155,2586.1,2585.7,3.86741]
[1727292235530,0.04360155,2586.1,2585.7,3.86741]
[1727292235760,3.86667,2586.2,2585.8,0.59529246]
[1727292236029,0.0435333,2586.0,2585.9,4.65212]
[1727292236223,3.86625,2586.5,2585.9,4.65212]
[1727292236224,3.86625,2586.5,2586.1,3.86682]
[1727292236580,8.50265,2586.7,2586.2,3.86666]
[1727292236787,0.7706,2586.7,2586.3,3.86652]
[1727292236989,0.7706,2586.7,2586.1,7.51367235]
[1727292236990,4.7332087,2586.7,2586.1,7.51367235]
[1727292237224,3.86629,2586.5,2586.1,1.30771386]
[1727292237423,3.86629,2586.5,2586.0,3.8669]
[1727292237595,3.86629,2586.5,2586.0,3.86688]
[1727292237916,3.86629,2586.5,2586.0,7.73376]
[1727292238293,3.86629,2586.5,2586.0,3.86688]
[1727292238495,3.86638,2586.4,2586.0,3.86688]
[1727292238716,3.86629,2586.5,2586.1,3.8668]
[1727292238929,3.86629,2586.5,2586.0,3.86688]
[1727292239227,3.86629,2586.5,2586.0,7.73377]
[1727292239408,3.86629,2586.5,2586.0,3.86688]
[1727292239614,3.86629,2586.5,2586.0,7.73374]
[1727292239838,3.86629,2586.5,2586.0,4.86940987]
[1727292240737,7.73264,2586.5,2586.0,4.86940987]
[1727292241099,0.0443329,2586.4,2586.0,4.86940987]
[1727292242341,0.0443329,2586.4,2586.0,8.73630987]
[1727292242641,0.0443329,2586.4,2586.0,4.86940987]
[1727292242849,0.0443329,2586.4,2586.1,3.86673]
[1727292243218,3.86615,2586.6,2586.1,3.86673]
[1727292243424,0.0443329,2586.3,2586.0,4.86940987]
[1727292243729,0.0443329,2586.2,2586.1,4.43221099]
[1727292243944,3.86615,2586.6,2586.1,4.43221099]
[1727292244133,0.0443329,2586.5,2586.1,3.86677]
[1727292244322,0.0443329,2586.5,2586.0,5.54969684]
[1727292244323,3.9106229,2586.5,2586.0,5.54969684]
[1727292244552,3.9106229,2586.5,2586.0,3.86686]
[1727292244905,3.9106229,2586.5,2586.0,5.54969684]
[1727292245215,3.9106229,2586.5,2586.0,9.41660684]
[1727292245409,0.0443329,2586.5,2586.1,3.8668]
[1727292245718,0.0443329,2586.5,2586.0,5.54969684]
[1727292245935,0.0443329,2586.5,2586.1,3.86674]
[1727292249641,0.0443329,2586.5,2586.2,1.68283684]
[1727292249946,0.7706,2586.7,2586.4,1.68283684]
[1727292250116,0.04436213,2586.6,2586.4,1.68283684]
[1727292250956,3.86586,2586.8,2586.4,1.68283684]
[1727292251111,0.04436213,2586.5,2586.4,1.68283684]
[1727292251324,3.86586,2586.8,2586.4,1.68283684]
[1727292251554,0.04436213,2586.7,2586.4,5.54919684]
[1727292251742,3.86586,2586.8,2586.4,1.68283684]
[1727292251927,0.04436213,2586.7,2586.4,1.68283684]
[1727292252248,3.86586,2586.8,2586.4,1.68283684]
[1727292252447,3.86586,2586.8,2586.4,5.54919684]
[1727292252448,0.04436213,2586.6,2586.4,5.54919684]
[1727292252648,0.8297,2587.4,2586.5,0.7919]
[1727292252849,0.40399584,2588.4,2587.7,3.86443]
[1727292252850,2.43173818,2588.3,2587.7,3.86443]
[1727292253057,11.22343,2588.4,2587.8,5.54711684]
[1727292253058,0.8297,2588.4,2587.8,5.54711684]
[1727292253264,0.8297,2588.4,2587.8,7.28017152]
[1727292253458,0.0378112,2588.7,2587.8,7.28017152]
[1727292253459,0.8675112,2588.7,2587.8,7.28017152]
[1727292253615,0.8675112,2588.7,2587.8,1.73305468]
[1727292253820,0.8675112,2588.7,2587.8,6.33901684]
[1727292253821,3.86352,2588.4,2587.8,6.33901684]
[1727292254359,3.86325,2588.5,2587.8,8.29663458]
[1727292254974,3.86343,2588.4,2587.8,8.29663458]
[1727292255277,3.86318,2588.6,2587.8,8.29663458]
[1727292255473,3.86324,2588.5,2587.8,8.29663458]
[1727292255961,3.86341,2588.4,2587.8,8.29663458]
[1727292256162,0.04746506,2587.9,2587.8,8.29663458]
[1727292259362,0.00453486,2587.9,2587.8,8.29663458]
[1727292261139,0.00453486,2587.9,2587.8,11.84663458]
[1727292261340,0.8675112,2588.7,2588.4,3.86337]
[1727292261552,0.044742,2588.6,2588.4,3.86337]
[1727292261780,0.8675112,2588.7,2588.4,3.86337]
[1727292262113,0.044742,2588.6,2588.4,3.86337]
[1727292262452,0.044742,2588.6,2588.4,3.86331]
[1727292263602,0.044742,2588.6,2588.0,3.86387]
[1727292263754,0.044742,2588.6,2588.1,0.36404546]
[1727292264393,0.044742,2588.6,2588.4,3.86337]
[1727292264698,0.044742,2588.6,2588.4,7.72667]
[1727292265056,0.044742,2588.6,2588.5,3.86324]
[1727292265394,0.044742,2588.6,2588.5,4.635894]
[1727292267584,0.044742,2588.6,2588.5,0.772654]
[1727292268688,0.044742,2588.6,2588.5,3.86324]
[1727292268890,0.044742,2588.6,2588.4,3.86326]
[1727292269051,0.044742,2588.6,2588.5,3.86324]
[1727292269473,0.044742,2588.6,2588.4,3.86326]
[1727292270091,0.044742,2588.6,2588.5,3.86324]
[1727292270277,0.044742,2588.6,2588.5,4.63589]
[1727292271393,0.044742,2588.6,2588.5,0.77265]
[1727292271601,0.044742,2588.6,2588.2,3.86359]
[1727292271602,0.877342,2588.6,2588.2,3.86359]
[1727292271763,0.877342,2588.6,2588.3,3.86344]
[1727292272492,0.877342,2588.6,2588.1,0.36404546]
[1727292272702,4.740502,2588.6,2588.0,3.8639]
[1727292272990,0.044742,2588.5,2588.1,3.86376]
[1727292273610,0.044742,2588.5,2588.2,3.86367]
[1727292273770,0.044742,2588.5,2588.2,3.86361]
[1727292273966,0.044742,2588.5,2588.3,3.86352]
[1727292274406,0.044742,2588.5,2588.2,3.86361]
[1727292274571,0.044742,2588.5,2588.2,3.86358]
[1727292275710,0.044742,2588.5,2588.2,7.72718]
[1727292276004,0.044742,2588.5,2588.2,3.86358]
[1727292276912,0.044742,2588.5,2588.0,3.86385]
[1727292277406,0.044742,2588.5,2588.1,3.86373]
[1727292278812,0.52256832,2588.5,2588.0,3.86385]
[1727292279018,4.38591832,2588.5,2588.0,3.86385]
[1727292279310,4.38591832,2588.5,2588.1,3.86383]
[1727292279311,0.52256832,2588.5,2588.1,3.86383]
[1727292279515,0.52256832,2588.5,2588.2,3.86368]
[1727292279687,0.044742,2588.5,2588.2,3.86368]
[1727292280280,0.044742,2588.5,2588.1,3.86383]
[1727292280510,0.044742,2588.5,2588.1,7.72757]
[1727292280698,0.044742,2588.5,2588.1,3.86374]
[1727292281693,3.907992,2588.5,2588.1,3.86374]
[1727292282172,0.044742,2588.5,2588.2,3.86367]
[1727292282377,0.044742,2588.5,2588.3,3.86352]
[1727292283380,0.044742,2588.5,2588.2,3.86368]
[1727292284195,0.044742,2588.5,2588.1,4.61494]
[1727292284411,0.044742,2588.5,2588.1,8.4787]
[1727292285196,0.044742,2588.5,2588.2,3.86367]
[1727292285833,0.044742,2588.5,2588.3,3.86353]
[1727292287097,0.044742,2588.5,2588.3,7.72699]
[1727292287520,0.044742,2588.5,2588.3,3.86346]
[1727292288503,0.044742,2588.5,2588.3,3.86343]
[1727292288705,0.044742,2588.5,2588.4,3.86339]
[1727292289020,0.0476151,2588.5,2588.4,3.86339]
[1727292289322,0.0476151,2588.5,2588.4,4.7208581]
[1727292289478,0.0378112,2588.7,2588.4,4.7208581]
[1727292289679,0.0476151,2588.6,2588.4,4.7208581]
[1727292290201,0.0476151,2588.6,2588.5,3.86324]
[1727292290390,0.0476151,2588.6,2588.5,4.72164981]
[1727292292515,0.0476151,2588.6,2588.5,5.51554981]
[1727292293369,0.0476151,2588.6,2588.5,4.72164981]
[1727292293961,0.0476151,2588.6,2588.4,3.86339]
[1727292295042,0.0476151,2588.6,2588.4,8.52058]
[1727292296142,0.0476151,2588.6,2588.4,4.65719]
[1727292296343,0.0476151,2588.6,2588.4,7.72657]
[1727292297730,0.0476151,2588.6,2588.5,3.86324]
[1727292297956,0.0476151,2588.6,2588.5,4.635892]
[1727292298452,0.0476151,2588.6,2588.5,0.772652]
[1727292300497,0.8677151,2588.6,2587.8,4.63094942]
[1727292300652,3.73705039,2588.5,2587.7,7.44]
[1727292300856,0.0476151,2588.6,2587.6,0.8285]
[1727292300857,0.8201,2588.4,2587.6,0.8285]
[1727292301063,0.86801673,2588.4,2587.9,3.86412]
[1727292301263,0.86801673,2588.4,2588.1,3.86374]
[1727292301578,0.86801673,2588.4,2588.1,7.72749]
[1727292301782,0.04791673,2588.4,2588.3,3.86353]
[1727292301932,0.0378112,2588.7,2588.3,3.86353]
[1727292302136,0.04791673,2588.6,2588.2,4.69208]
[1727292302461,0.04791673,2588.6,2588.4,7.72661]
[1727292302662,0.04791673,2588.6,2588.4,7.7266]
[1727292302865,0.04791673,2588.6,2588.5,3.86324]
[1727292308868,0.04791673,2588.6,2588.5,5.54298741]
[1727292309178,0.04791673,2588.6,2588.4,8.5821]
[1727292309385,0.04791673,2588.6,2588.5,3.86324]
[1727292312274,0.04791673,2588.6,2588.5,5.54298741]
[1727292312584,0.04791673,2588.6,2588.5,6.56916615]
[1727292321219,0.85971673,2588.6,2588.2,2.0]
[1727292321390,4.72287673,2588.6,2588.2,5.86368]
[1727292321721,8.58610673,2588.6,2588.2,2.0]
[1727292322095,4.72287673,2588.6,2588.2,2.0]
[1727292322280,8.58611673,2588.6,2588.2,2.0]
[1727292322622,3.86353,2588.3,2588.2,2.0]
[1727292322928,4.67533,2588.3,2588.2,2.0]
[1727292323097,4.72309105,2588.3,2588.2,2.0]
[1727292323479,0.85956105,2588.3,2588.2,2.0]
[1727292323782,0.04776105,2588.3,2588.2,5.86368]
[1727292324013,0.0378112,2588.7,2588.2,7.1630319]
[1727292324014,0.7950112,2588.7,2588.2,7.1630319]
[1727292324187,0.0378112,2588.7,2588.3,1.67974741]
[1727292324515,0.0378112,2588.7,2588.6,3.86309]
[1727292325326,0.0378112,2588.7,2588.6,4.91876759]
[1727292325534,0.0378112,2588.7,2588.6,4.96025729]
[1727292328381,0.0378112,2588.7,2588.6,8.59856703]
[1727292328579,0.0378112,2588.7,2588.6,8.52199408]
[1727292328820,0.0378112,2588.7,2588.6,15.14347461]
[1727292328997,0.0378112,2588.7,2588.6,16.26907282]
[1727292329192,0.0378112,2588.7,2588.6,15.94592403]
[1727292329736,0.0378112,2588.7,2588.6,16.26893146]
[1727292330118,0.0378112,2588.7,2588.6,15.14347461]
[1727292330630,0.0378112,2588.7,2588.6,15.14134925]
[1727292331911,0.0378112,2588.7,2588.6,13.75699615]
[1727292332242,0.0378112,2588.7,2588.6,13.75623008]
[1727292332943,0.0378112,2588.7,2588.6,15.13935975]
[1727292333351,0.0378112,2588.7,2588.6,15.94180917]
[1727292333516,0.0378112,2588.7,2588.6,15.13935975]
[1727292333722,0.0378112,2588.7,2588.6,15.94180917]
[1727292333920,0.0378112,2589.5,2589.4,8.30609974]
[1727292334102,0.0378112,2589.5,2589.4,9.52291171]
[1727292334633,0.08761478,2589.5,2589.4,9.52291171]
[1727292334801,0.0378112,2589.5,2589.4,9.52291171]
[1727292335005,0.08761478,2589.5,2589.4,10.07291171]
[1727292337460,0.08761478,2589.5,2589.4,6.43460197]
[1727292338162,0.07761478,2589.5,2589.4,10.14937516]
[1727292338322,0.07761478,2589.5,2589.4,10.07291171]
[1727292338717,0.0278112,2589.5,2589.4,10.07291171]
[1727292338955,0.07761478,2589.5,2589.4,10.07291171]
[1727292339652,0.07761478,2589.5,2589.4,13.07291171]
[1727292339817,0.0278112,2589.5,2589.4,13.07291171]
[1727292340019,0.04234606,2590.3,2590.2,3.8607]
[1727292340262,0.04234606,2590.3,2590.2,8.26290974]
[1727292340823,0.04234606,2590.3,2590.2,8.81290974]
[1727292342824,0.04234606,2590.3,2590.2,4.6246]
[1727292344648,0.04234606,2590.3,2590.2,8.26290974]
[1727292344857,0.04234606,2590.3,2590.2,9.47528371]
[1727292346085,0.09396702,2590.3,2590.2,9.47528371]
[1727292346273,0.04234606,2590.3,2590.2,9.47528371]
[1727292346433,0.09396702,2590.3,2590.2,9.47528371]
[1727292347737,0.09396702,2590.3,2590.2,5.83697397]
[1727292347931,0.09396702,2590.3,2590.2,5.91337941]
[1727292348673,0.09396702,2590.3,2590.2,5.14947941]
[1727292348855,0.08943216,2590.3,2590.2,5.14947941]
[1727292350869,0.08943216,2590.3,2589.9,3.86104]
[1727292351089,0.86823216,2590.3,2589.8,0.8026]
[1727292351243,3.86078,2590.2,2589.7,6.86133]
[1727292351431,0.05210672,2590.2,2589.7,7.44440661]
[1727292351650,0.05210672,2590.2,2589.8,3.86121]
[1727292351844,4.6771812,2590.3,2589.8,3.86121]
[1727292352179,0.8166112,2590.3,2589.7,7.44440661]
[1727292352381,0.05210672,2590.2,2589.9,3.86114]
[1727292352590,0.8166112,2590.3,2590.0,3.86099]
[1727292352767,0.05210672,2590.1,2590.0,3.86099]
[1727292352971,0.8166112,2590.3,2590.0,3.86099]
[1727292353149,0.05210672,2590.1,2590.0,3.86099]
[1727292353354,0.8166112,2590.3,2590.0,5.11588714]
[1727292353560,0.05210672,2590.2,2590.0,5.11588714]
[1727292353769,0.8166112,2590.3,2590.0,5.11588714]
[1727292353973,0.05210672,2590.1,2590.0,5.11588714]
[1727292354183,0.8166112,2590.3,2590.0,5.11588714]
[1727292354497,0.05210672,2590.1,2589.9,3.86104]
[1727292354667,0.8166112,2590.3,2589.9,3.86104]
[1727292355181,0.05210672,2590.2,2589.9,3.86104]
[1727292355378,0.8166112,2590.3,2589.8,5.04981163]
[1727292355543,0.05210672,2590.1,2590.0,7.72191]
[1727292355764,0.8166112,2590.3,2590.0,0.89104416]
[1727292355948,0.05210672,2590.1,2590.0,3.86088]
[1727292356191,0.8166112,2590.3,2590.0,3.86088]
[1727292356360,0.05174729,2590.1,2590.0,3.86088]
[1727292356557,0.8166112,2590.3,2590.0,3.86088]
[1727292356875,0.8166112,2590.3,2589.9,3.86107]
[1727292357084,0.8166112,2590.3,2590.0,3.86092]
[1727292357482,0.8166112,2590.3,2590.0,3.86099]
[1727292358042,0.8166112,2590.3,2590.1,3.86084]
[1727292360301,0.8166112,2590.3,2589.7,3.58307661]
[1727292360594,0.7947,2590.1,2589.7,3.86131]
[1727292361093,0.05140727,2590.0,2589.7,3.86131]
[1727292361319,0.05140727,2590.0,2589.9,3.86115]
[1727292363975,0.05140727,2590.0,2589.8,7.72251]
[1727292364188,0.05140727,2590.0,2589.9,3.86115]
[1727292364618,0.05140727,2590.0,2589.8,3.86122]
[1727292364770,0.05140727,2590.0,2589.9,3.86115]
[1727292370180,0.05140727,2590.0,2589.6,3.86151]
[1727292370382,4.68151,2589.9,2589.5,3.86173]
[1727292370590,4.68151,2589.9,2589.6,3.86153]
[1727292370591,0.8203,2589.9,2589.6,3.86153]
[1727292370811,0.05112547,2589.8,2589.6,3.86153]
[1727292372816,0.05112547,2589.8,2589.5,3.86163]
[1727292373821,0.05112547,2589.8,2589.5,7.72331]
[1727292374117,0.05112547,2589.8,2589.5,3.86163]
[1727292374488,0.05112547,2589.8,2589.5,7.72331]
[1727292375588,0.05112547,2589.8,2589.6,3.86152]
[1727292376536,0.05112547,2589.8,2589.4,3.86176]
[1727292376685,0.05112547,2589.8,2589.5,3.86173]
[1727292376889,0.05112547,2589.8,2589.6,3.86152]
[1727292380294,0.05112547,2589.8,2589.6,7.72303]
[1727292380903,0.05112547,2589.8,2589.7,5.53999076]
[1727292381102,0.05112547,2589.8,2589.7,6.29659076]
[1727292381355,0.8203,2590.1,2589.8,3.86118]
[1727292381629,0.8203,2590.1,2590.0,3.861]
[1727292382938,0.8203,2590.1,2589.8,3.86118]
[1727292383637,0.8203,2590.1,2589.9,3.86113]